bitfinex-derivatives/quotes_BTCF0:USTF0_20260214
["timestamp","ask_amount","ask_price","bid_price","bid_amount"]
[1771087770990,0.07642283,69724.0,69710.0,0.014351]
[1771087771176,0.06207483,69721.0,69699.0,0.06232634]
[1771087771381,0.01435,69714.0,69700.0,0.158]
[1771087771582,0.014351,69713.0,69703.0,0.014353]
[1771087771787,0.014351,69712.0,69704.0,0.01444]
[1771087773593,0.028702,69712.0,69704.0,0.01444]
[1771087773786,0.014351,69712.0,69704.0,0.01444]
[1771087774087,0.014351,69711.0,69704.0,0.01444]
[1771087775393,0.028702,69711.0,69704.0,0.01444]
[1771087775992,0.014351,69710.0,69704.0,0.01444]
[1771087776595,0.014351,69712.0,69704.0,0.01444]
[1771087777189,0.06207483,69731.0,69707.0,0.07667834]
[1771087777390,0.01435,69714.0,69708.0,0.01444]
[1771087777588,0.014351,69713.0,69708.0,0.01444]
[1771087777787,0.014351,69712.0,69699.0,0.014353]
[1771087778087,0.014351,69709.0,69700.0,0.158]
[1771087778495,0.014352,69707.0,69700.0,0.158]
[1771087778695,0.014352,69709.0,69700.0,0.158]
[1771087778998,0.057403,69712.0,69701.0,0.014353]
[1771087779193,0.014351,69711.0,69702.0,0.014353]
[1771087779785,0.014351,69710.0,69701.0,0.014353]
[1771087779989,0.014351,69710.0,69702.0,0.01444]
[1771087780593,0.014351,69709.0,69702.0,0.01444]
[1771087780997,0.014351,69711.0,69703.0,0.014352]
[1771087781598,0.028702,69711.0,69703.0,0.014352]
[1771087781785,0.014351,69711.0,69703.0,0.014352]
[1771087781988,0.014353,69703.0,69688.0,0.07291956]
[1771087782192,0.014353,69702.0,69694.0,0.014354]
[1771087782395,0.014353,69702.0,69695.0,0.01444]
[1771087783099,0.014353,69702.0,69695.0,0.028794]
[1771087783596,0.014353,69702.0,69695.0,0.01444]
[1771087783798,0.014353,69700.0,69695.0,0.01444]
[1771087783993,0.014353,69701.0,69694.0,0.014354]
[1771087784194,0.014353,69700.0,69695.0,0.01444]
[1771087784696,0.028701,69703.0,69695.0,0.01444]
[1771087784891,0.014353,69702.0,69695.0,0.01444]
[1771087785090,0.014353,69701.0,69695.0,0.01444]
[1771087785295,0.028701,69703.0,69696.0,0.014354]
[1771087785597,0.028701,69703.0,69698.0,0.014353]
[1771087785797,0.028701,69703.0,69696.0,0.014354]
[1771087785998,0.028701,69703.0,69697.0,0.014354]
[1771087786198,0.028792,69707.0,69698.0,0.028707]
[1771087786502,0.028701,69705.0,69699.0,0.028793]
[1771087787003,0.14356,69712.0,69708.0,0.014351]
[1771087787396,0.01444,69714.0,69708.0,0.028791]
[1771087788302,0.01444,69714.0,69708.0,0.01444]
[1771087789102,0.014351,69713.0,69708.0,0.01444]
[1771087789295,0.01435,69713.0,69705.0,0.01444]
[1771087789696,0.014351,69712.0,69705.0,0.01444]
[1771087790093,0.014351,69711.0,69705.0,0.01444]
[1771087790497,0.01435,69713.0,69702.0,0.14356]
[1771087790698,0.014352,69705.0,69700.0,0.01444]
[1771087790897,0.014352,69706.0,69696.0,0.014354]
[1771087791310,0.014352,69707.0,69696.0,0.014354]
[1771087791605,0.01444,69708.0,69699.0,0.014353]
[1771087791806,0.028792,69708.0,69698.0,0.014354]
[1771087792006,0.014352,69707.0,69697.0,0.01444]
[1771087792208,0.014353,69704.0,69697.0,0.01444]
[1771087792395,0.014352,69707.0,69698.0,0.00470403]
[1771087792597,0.028792,69708.0,69698.0,0.01905703]
[1771087792901,0.014352,69707.0,69698.0,0.00470403]
[1771087793103,0.014352,69706.0,69698.0,0.00470403]
[1771087794206,0.014352,69707.0,69698.0,0.00470403]
[1771087795208,0.028704,69707.0,69698.0,0.00470403]
[1771087795400,0.014352,69706.0,69698.0,0.00470403]
[1771087795600,0.014353,69703.0,69698.0,0.00470403]
[1771087795800,0.014353,69702.0,69698.0,0.00470403]
[1771087796202,0.014353,69702.0,69695.0,0.14356]
[1771087796203,0.014353,69702.0,69693.0,0.014354]
[1771087796403,0.014353,69702.0,69694.0,0.01444]
[1771087797009,0.014353,69703.0,69694.0,0.01444]
[1771087797306,0.014353,69701.0,69694.0,0.01444]
[1771087798202,0.014353,69701.0,69695.0,0.01444]
[1771087798397,0.014353,69701.0,69693.0,0.014354]
[1771087798603,0.014353,69701.0,69694.0,0.01444]
[1771087799104,0.028706,69701.0,69694.0,0.01444]
[1771087799509,0.014354,69699.0,69689.0,0.014355]
[1771087799709,0.014353,69699.0,69691.0,0.028795]
[1771087800008,0.014353,69699.0,69691.0,0.172355]
[1771087800208,0.014353,69700.0,69692.0,0.014355]
[1771087800398,0.014353,69703.0,69695.0,0.08444558]
[1771087800601,0.014353,69702.0,69696.0,0.01444]
[1771087801510,0.014353,69703.0,69696.0,0.028794]
[1771087802006,0.014355,69692.0,69677.0,0.07009158]
[1771087802209,0.014357,69684.0,69672.0,0.14356]
[1771087802406,0.08333382,69689.0,69672.0,0.14356]
[1771087802407,0.014359,69673.0,69672.0,0.14356]
[1771087802712,0.014356,69689.0,69672.0,0.01444]
[1771087802713,0.028718,69674.0,69672.0,0.01444]
[1771087802902,0.028718,69674.0,69667.0,0.14356]
[1771087802903,0.014359,69671.0,69667.0,0.14356]
[1771087803209,0.014359,69672.0,69668.0,0.01444]
[1771087803415,0.01444,69677.0,69669.0,0.014359]
[1771087804005,0.01444,69677.0,69670.0,0.014359]
[1771087804401,0.01444,69677.0,69668.0,0.01444]
[1771087804608,0.028798,69677.0,69668.0,0.01444]
[1771087804808,0.014358,69675.0,69668.0,0.01444]
[1771087805001,0.014359,69674.0,69668.0,0.01444]
[1771087805206,0.014358,69675.0,69668.0,0.01444]
[1771087805407,0.014359,69674.0,69668.0,0.01444]
[1771087805706,0.028716,69676.0,69668.0,0.01444]
[1771087805903,0.014358,69675.0,69668.0,0.01444]
[1771087806314,0.014359,69674.0,69668.0,0.01444]
[1771087806909,0.014358,69675.0,69668.0,0.01444]
[1771087807416,0.014359,69674.0,69668.0,0.01444]
[1771087807806,0.014359,69672.0,69668.0,0.01444]
[1771087808711,0.014359,69671.0,69668.0,0.01444]
[1771087808912,0.014359,69671.0,69617.0,0.2032]
[1771087808913,0.014361,69662.0,69648.0,0.014364]
[1771087809113,0.014361,69662.0,69655.0,0.1436]
[1771087809731,0.014361,69661.0,69655.0,0.1436]
[1771087810026,0.01436,69666.0,69658.0,0.014362]
[1771087810226,0.01436,69669.0,69660.0,0.014361]
[1771087810421,0.01436,69669.0,69659.0,0.028801]
[1771087810422,0.01436,69669.0,69661.0,0.028801]
[1771087810622,0.4262481,69709.0,69677.0,0.014358]
[1771087810623,0.014355,69691.0,69677.0,0.014358]
[1771087810926,0.014356,69685.0,69676.0,0.014358]
[1771087811126,0.01444,69684.0,69676.0,0.014358]
[1771087811327,0.01444,69684.0,69674.0,0.01444]
[1771087811525,0.01444,69689.0,69681.0,0.014357]
[1771087811720,0.1436,69690.0,69683.0,0.014357]
[1771087811919,0.014355,69691.0,69683.0,0.014357]
[1771087812728,0.014355,69690.0,69682.0,0.028797]
[1771087813028,0.014355,69691.0,69683.0,0.014357]
[1771087813228,0.014355,69692.0,69682.0,0.028797]
[1771087813527,0.014356,69688.0,69682.0,0.01444]
[1771087813726,0.014355,69689.0,69682.0,0.01444]
[1771087814327,0.014356,69688.0,69682.0,0.01444]
[1771087816430,0.014355,69691.0,69682.0,0.01444]
[1771087816626,0.014356,69689.0,69682.0,0.01444]
[1771087817326,0.014356,69686.0,69682.0,0.01444]
[1771087817531,0.014354,69694.0,69682.0,0.028797]
[1771087817731,0.014355,69690.0,69682.0,0.01444]
[1771087818121,0.014355,69689.0,69682.0,0.01444]
[1771087818426,0.014353,69702.0,69686.0,0.07317192]
[1771087818730,0.028793,69699.0,69690.0,0.014355]
[1771087818930,0.028793,69699.0,69691.0,0.028795]
[1771087819129,0.043147,69699.0,69691.0,0.01444]
[1771087819328,0.014354,69698.0,69691.0,0.01444]
[1771087819530,0.014354,69697.0,69691.0,0.01444]
[1771087819734,0.014354,69696.0,69691.0,0.01444]
[1771087821130,0.014354,69698.0,69691.0,0.01444]
[1771087821731,0.157953,69700.0,69691.0,0.01444]
[1771087821933,0.157953,69700.0,69692.0,0.014355]
[1771087822532,0.1436,69700.0,69692.0,0.014355]
[1771087822931,0.157953,69700.0,69692.0,0.014355]
[1771087823132,0.014353,69700.0,69692.0,0.014355]
[1771087823332,0.014353,69701.0,69692.0,0.014355]
[1771087823636,0.01444,69702.0,69695.0,0.014354]
[1771087823938,0.014352,69707.0,69697.0,0.014354]
[1771087824231,0.1436,69708.0,69696.0,0.014354]
[1771087824530,0.157952,69708.0,69698.0,0.014353]
[1771087824736,0.157952,69708.0,69699.0,0.028793]
[1771087824928,0.01444,69713.0,69701.0,0.014353]
[1771087825125,0.014351,69712.0,69703.0,0.014352]
[1771087825325,0.014351,69712.0,69703.0,0.01444]
[1771087825532,0.08584608,69702.0,69695.0,0.01444]
[1771087825729,0.014354,69699.0,69695.0,0.01444]
[1771087825930,0.014354,69698.0,69689.0,0.014355]
[1771087826130,0.014354,69697.0,69690.0,0.01444]
[1771087826333,0.014354,69698.0,69690.0,0.01444]
[1771087827141,0.014354,69697.0,69690.0,0.01444]
[1771087827537,0.014354,69697.0,69684.0,0.014356]
[1771087827538,0.08584708,69697.0,69683.0,0.014357]
[1771087827738,0.014355,69693.0,69684.0,0.172396]
[1771087827936,0.014354,69696.0,69687.0,0.014356]
[1771087828141,0.014354,69696.0,69677.0,0.014358]
[1771087828142,0.014358,69678.0,69672.0,0.1436]
[1771087828338,0.014357,69683.0,69675.0,0.014358]
[1771087828536,0.014357,69682.0,69674.0,0.014358]
[1771087828738,0.014357,69683.0,69675.0,0.014358]
[1771087828938,0.014357,69683.0,69673.0,0.014359]
[1771087829134,0.014357,69680.0,69676.0,0.01444]
[1771087829335,0.014357,69681.0,69677.0,0.01444]
[1771087829535,0.014357,69681.0,69678.0,0.01444]
[1771087829737,0.014357,69680.0,69678.0,0.01444]
[1771087829939,0.014358,69678.0,69670.0,0.014359]
[1771087830240,0.014358,69678.0,69671.0,0.15804]
[1771087830438,0.014358,69677.0,69671.0,0.15804]
[1771087831139,0.014358,69678.0,69671.0,0.15804]
[1771087831340,0.014357,69679.0,69671.0,0.172399]
[1771087832143,0.01436,69669.0,69660.0,0.08753292]
[1771087832339,0.01436,69668.0,69661.0,0.15804]
[1771087832642,0.01436,69669.0,69661.0,0.15804]
[1771087832844,0.014359,69670.0,69661.0,0.24557292]
[1771087833042,0.014359,69672.0,69663.0,0.014361]
[1771087833245,0.014359,69670.0,69662.0,0.08753292]
[1771087833446,0.01444,69676.0,69667.0,0.07317192]
[1771087833646,0.1436,69678.0,69667.0,0.08761192]
[1771087833845,0.014358,69675.0,69667.0,0.08761192]
[1771087834647,0.014359,69670.0,69661.0,0.014361]
[1771087834846,0.014359,69673.0,69663.0,0.014361]
[1771087835233,0.014359,69673.0,69663.0,0.08753292]
[1771087835435,0.014359,69672.0,69664.0,0.01436]
[1771087835848,0.014359,69672.0,69663.0,0.08753292]
[1771087836546,0.014359,69672.0,69663.0,0.07317192]
[1771087836742,0.014359,69671.0,69664.0,0.15808]
[1771087837148,0.014359,69671.0,69663.0,0.07317192]
[1771087837354,0.014359,69671.0,69665.0,0.01444]
[1771087837544,0.014358,69675.0,69665.0,0.01444]
[1771087837848,0.014359,69671.0,69666.0,0.01444]
[1771087838950,0.014359,69670.0,69666.0,0.01444]
[1771087839452,0.01436,69669.0,69661.0,0.014361]
[1771087839651,0.014359,69670.0,69662.0,0.15808]
[1771087839950,0.014359,69671.0,69662.0,0.172441]
[1771087840340,0.014359,69671.0,69662.0,0.24561292]
[1771087840855,0.014359,69673.0,69664.0,0.014361]
[1771087841150,0.014359,69673.0,69665.0,0.01444]
[1771087841348,0.014359,69672.0,69665.0,0.01444]
[1771087841545,0.01436,69668.0,69665.0,0.01444]
[1771087841746,0.01436,69669.0,69665.0,0.01444]
[1771087841946,0.014359,69672.0,69666.0,0.01444]
[1771087842654,0.014359,69670.0,69666.0,0.01444]
[1771087842845,0.01436,69670.0,69666.0,0.01444]
[1771087843040,0.014359,69674.0,69666.0,0.01444]
[1771087843245,0.01436,69670.0,69666.0,0.01444]
[1771087843447,0.09389233,69673.0,69656.0,0.014362]
[1771087843651,0.01436,69667.0,69658.0,0.014362]
[1771087843851,0.01436,69667.0,69657.0,0.15808]
[1771087844053,0.014361,69664.0,69657.0,0.15808]
[1771087844250,0.01436,69667.0,69657.0,0.172442]
[1771087844449,0.01436,69665.0,69657.0,0.15808]
[1771087844649,0.01436,69667.0,69657.0,0.15808]
[1771087844650,0.014361,69664.0,69657.0,0.15808]
[1771087845057,0.01436,69665.0,69657.0,0.15808]
[1771087845242,0.014361,69664.0,69657.0,0.15808]
[1771087845449,0.014361,69661.0,69657.0,0.15808]
[1771087845755,0.014361,69660.0,69657.0,0.15808]
[1771087846841,0.014361,69660.0,69652.0,0.08018299]
[1771087847046,0.014362,69659.0,69653.0,0.15808]
[1771087847347,0.014362,69660.0,69654.0,0.15808]
[1771087847945,0.014362,69659.0,69652.0,0.08018299]
[1771087848152,0.014362,69659.0,69653.0,0.15808]
[1771087849359,0.014362,69658.0,69653.0,0.15808]
[1771087850356,0.014362,69657.0,69653.0,0.15808]
[1771087851360,0.014362,69655.0,69653.0,0.15808]
[1771087851555,0.014362,69655.0,69654.0,0.01444]
[1771087852456,0.014363,69653.0,69652.0,0.14364]
[1771087852761,0.014363,69654.0,69652.0,0.15808]
[1771087852962,0.01444,69666.0,69652.0,0.15808]
[1771087853354,0.014363,69654.0,69652.0,0.15808]
[1771087853662,0.014361,69662.0,69652.0,0.15808]
[1771087853864,0.014363,69654.0,69652.0,0.15808]
[1771087854062,0.014361,69662.0,69652.0,0.15808]
[1771087854357,0.014361,69660.0,69652.0,0.15808]
[1771087854563,0.014362,69656.0,69653.0,0.01444]
[1771087854767,0.014361,69662.0,69653.0,0.01444]
[1771087855459,0.014363,69654.0,69653.0,0.01444]
[1771087855775,0.014362,69658.0,69653.0,0.01444]
[1771087856060,0.014361,69662.0,69653.0,0.10898599]
[1771087856254,0.014361,69660.0,69653.0,0.10898599]
[1771087856765,0.014361,69663.0,69653.0,0.09462299]
[1771087856964,0.014356,69685.0,69666.0,0.08018299]
[1771087857265,0.014354,69698.0,69683.0,0.08018299]
[1771087857467,0.014355,69689.0,69684.0,0.01444]
[1771087857659,0.014355,69690.0,69684.0,0.01444]
[1771087857863,0.014354,69698.0,69684.0,0.09462299]
[1771087858064,0.014355,69689.0,69684.0,0.09462299]
[1771087858265,0.014354,69698.0,69684.0,0.09462299]
[1771087858474,0.014355,69690.0,69684.0,0.09462299]
[1771087858674,0.014354,69698.0,69684.0,0.09462299]
[1771087859079,0.014355,69690.0,69684.0,0.09462299]
[1771087859264,0.014354,69698.0,69684.0,0.09462299]
[1771087859671,0.014355,69690.0,69684.0,0.09462299]
[1771087860178,0.01444,69699.0,69684.0,0.09462299]
[1771087860179,0.014353,69701.0,69692.0,0.08018299]
[1771087860480,0.014354,69699.0,69693.0,0.01444]
[1771087860670,0.014353,69701.0,69693.0,0.01444]
[1771087860980,0.014355,69692.0,69685.0,0.08018299]
[1771087861171,0.014355,69694.0,69687.0,0.08018299]
[1771087861481,0.014355,69693.0,69687.0,0.08018299]
[1771087861673,0.014355,69692.0,69686.0,0.15808]
[1771087861973,0.014355,69694.0,69686.0,0.172436]
[1771087862183,0.014355,69693.0,69687.0,0.014356]
[1771087862478,0.014356,69685.0,69676.0,0.09454099]
[1771087862776,0.014356,69684.0,69678.0,0.014358]
[1771087862973,0.014356,69684.0,69679.0,0.172437]
[1771087863277,0.014356,69685.0,69678.0,0.014358]
[1771087863475,0.014355,69694.0,69685.0,0.014356]
[1771087863476,0.014355,69693.0,69685.0,0.014356]
[1771087863776,0.014355,69690.0,69685.0,0.10897899]
[1771087863966,0.01444,69697.0,69690.0,0.08018299]
[1771087864174,0.014355,69693.0,69690.0,0.09462299]
[1771087864371,0.014354,69694.0,69690.0,0.09462299]
[1771087864576,0.028708,69698.0,69691.0,0.014355]
[1771087864772,0.014354,69698.0,69692.0,0.014355]
[1771087864975,0.014354,69698.0,69691.0,0.014355]
[1771087865376,0.014354,69697.0,69691.0,0.014355]
[1771087865569,0.014354,69695.0,69690.0,0.028795]
[1771087865775,0.014355,69689.0,69683.0,0.08018299]
[1771087865981,0.014355,69690.0,69685.0,0.014356]
[1771087866277,0.014355,69690.0,69685.0,0.09453899]
[1771087866873,0.014355,69691.0,69686.0,0.09453899]
[1771087867073,0.014355,69690.0,69687.0,0.01444]
[1771087867478,0.09397333,69699.0,69661.0,0.08018299]
[1771087867676,0.014358,69678.0,69669.0,0.08018299]
[1771087867877,0.07953333,69685.0,69669.0,0.14364]
[1771087868080,0.07953333,69685.0,69653.0,0.014363]
[1771087868081,0.014361,69664.0,69663.0,0.14364]
[1771087868274,0.01444,69674.0,69665.0,0.09454299]
[1771087868470,0.01444,69674.0,69665.0,0.08018299]
[1771087868675,0.07953333,69673.0,69659.0,0.14364]
[1771087868878,0.01444,69674.0,69665.0,0.01436]
[1771087869180,0.01444,69674.0,69664.0,0.01436]
[1771087869381,0.01444,69674.0,69663.0,0.01444]
[1771087869576,0.014359,69673.0,69666.0,0.01436]
[1771087869975,0.01444,69674.0,69667.0,0.01436]
[1771087870177,0.014359,69673.0,69665.0,0.08018299]
[1771087870487,0.014359,69672.0,69666.0,0.01444]
[1771087870779,0.014359,69671.0,69666.0,0.01444]
[1771087871684,0.01444,69674.0,69670.0,0.014359]
[1771087871885,0.14364,69679.0,69666.0,0.09462299]
[1771087871886,0.01444,69675.0,69666.0,0.09462299]
[1771087872084,0.028798,69675.0,69668.0,0.01436]
[1771087872480,0.014359,69674.0,69666.0,0.01444]
[1771087872684,0.014359,69673.0,69666.0,0.01444]
[1771087873185,0.014359,69674.0,69666.0,0.01444]
[1771087873581,0.014359,69673.0,69666.0,0.01444]
[1771087873780,0.014359,69672.0,69666.0,0.01444]
[1771087874787,0.014359,69671.0,69666.0,0.01444]
[1771087874986,0.01436,69666.0,69665.0,0.01444]
[1771087875286,0.01436,69666.0,69665.0,7.7e-05]
[1771087876286,0.014359,69673.0,69648.0,0.09188323]
[1771087876287,0.09112095,69668.0,69648.0,0.09188323]
[1771087876590,0.014363,69653.0,69649.0,0.01444]
[1771087876787,0.014363,69652.0,69649.0,0.01444]
[1771087877094,0.014363,69652.0,69650.0,0.01444]
[1771087877278,0.014363,69653.0,69651.0,0.01444]
[1771087877482,0.014363,69651.0,69646.0,0.14364]
[1771087877679,0.014362,69655.0,69646.0,0.14364]
[1771087877888,0.014363,69655.0,69648.0,0.014364]
[1771087878090,0.014362,69657.0,69649.0,0.028804]
[1771087878393,0.14364,69677.0,69661.0,0.09188323]
[1771087878689,0.09112095,69680.0,69663.0,0.10624423]
[1771087878690,0.014359,69674.0,69663.0,0.10624423]
[1771087878986,0.01444,69676.0,69672.0,0.014359]
[1771087879183,0.14364,69680.0,69674.0,0.014358]
[1771087879496,0.01444,69679.0,69670.0,0.014359]
[1771087879885,0.01444,69679.0,69669.0,0.014359]
[1771087879886,0.01444,69679.0,69671.0,0.014359]
[1771087880085,0.01444,69678.0,69671.0,0.014359]
[1771087880392,0.01444,69679.0,69674.0,0.014358]
[1771087880582,0.01051666,69679.0,69672.0,0.014359]
[1771087880784,0.01051666,69679.0,69671.0,0.014359]
[1771087881584,0.01051666,69679.0,69672.0,0.014359]
[1771087881785,0.01051666,69679.0,69668.0,0.01444]
[1771087881991,0.10556095,69679.0,69668.0,0.01444]
[1771087883990,0.10556095,69679.0,69668.0,0.0288]
[1771087884192,0.01444,69679.0,69668.0,0.01444]
[1771087884392,0.01444,69679.0,69670.0,0.014359]
[1771087884688,0.01444,69679.0,69671.0,0.014359]
[1771087885486,0.01444,69679.0,69669.0,0.0288]
[1771087885886,0.01444,69679.0,69669.0,0.01444]
[1771087887494,0.10556095,69679.0,69644.0,0.09188323]
[1771087887790,0.10556095,69679.0,69652.0,0.014363]
[1771087887987,0.10556095,69679.0,69653.0,0.01444]
[1771087888492,0.09112095,69677.0,69643.0,0.014365]
[1771087888693,0.09112095,69675.0,69644.0,0.172445]
[1771087888986,0.09112095,69673.0,69644.0,0.014365]
[1771087889193,0.09112095,69671.0,69645.0,0.15808]
[1771087889392,0.09112095,69669.0,69645.0,0.15808]
[1771087890196,0.09112095,69669.0,69646.0,0.01444]
[1771087890397,0.09112095,69669.0,69647.0,0.014364]
[1771087890694,0.014362,69655.0,69647.0,0.014364]
[1771087890896,0.014363,69654.0,69647.0,0.014364]
[1771087891389,0.014363,69651.0,69646.0,0.01444]
[1771087891990,0.014363,69652.0,69646.0,0.01444]
[1771087892493,0.014363,69653.0,69646.0,0.01444]
[1771087893796,0.014363,69652.0,69646.0,0.01444]
[1771087893996,0.014363,69651.0,69646.0,0.01444]
[1771087895495,0.014363,69650.0,69646.0,0.01444]
[1771087895997,0.014363,69650.0,69647.0,0.01444]
[1771087896197,0.014363,69651.0,69647.0,0.01444]
[1771087896387,0.014363,69652.0,69647.0,0.01444]
[1771087896594,0.014363,69652.0,69648.0,0.01444]
[1771087897396,0.014363,69651.0,69648.0,0.01444]
[1771087897693,0.014362,69655.0,69636.0,0.014366]
[1771087897694,0.014364,69648.0,69636.0,0.014366]
[1771087897899,0.014366,69638.0,69635.0,0.14368]
[1771087898093,0.014366,69639.0,69636.0,0.01444]
[1771087898299,0.014365,69641.0,69636.0,0.01444]
[1771087900098,0.014365,69643.0,69636.0,0.028806]
[1771087900998,0.014365,69642.0,69636.0,0.028806]
[1771087901701,0.014366,69638.0,69633.0,0.14368]
[1771087901994,0.01444,69646.0,69641.0,0.014365]
[1771087902200,0.01444,69646.0,69642.0,0.014365]
[1771087902604,0.014365,69643.0,69639.0,0.01444]
[1771087902793,0.014365,69642.0,69639.0,0.01444]
[1771087903100,0.014365,69644.0,69639.0,0.01444]
[1771087904401,0.014364,69646.0,69639.0,0.01444]
[1771087904697,0.014365,69645.0,69639.0,0.01444]
[1771087904903,0.014365,69642.0,69639.0,0.01444]
[1771087905104,0.014365,69644.0,69639.0,0.01444]
[1771087905603,0.02873,69644.0,69639.0,0.01444]
[1771087905803,0.014366,69640.0,69639.0,0.01444]
[1771087906100,0.014366,69640.0,69639.0,0.000738]
[1771087906300,0.014366,69640.0,69639.0,0.0117]
[1771087906802,0.01444,69648.0,69639.0,0.005601]
[1771087907903,0.014365,69643.0,69639.0,0.005601]
[1771087908204,0.014366,69640.0,69639.0,0.005601]
[1771087908600,0.014365,69641.0,69626.0,0.11182349]
[1771087908904,0.32398312,69651.0,69628.0,0.014368]
[1771087908905,0.01444,69640.0,69628.0,0.014368]
[1771087909108,0.09600236,69639.0,69629.0,0.01444]
[1771087909501,0.09600236,69639.0,69627.0,0.014368]
[1771087909806,0.09600236,69639.0,69630.0,0.01444]
[1771087910002,0.09600236,69639.0,69625.0,0.158049]
[1771087910003,0.09600236,69639.0,69625.0,0.14368]
[1771087910303,0.09600236,69639.0,69626.0,0.01444]
[1771087910709,0.014366,69636.0,69626.0,0.01444]
[1771087911002,0.014367,69633.0,69626.0,0.01444]
[1771087911309,0.014367,69632.0,69624.0,0.014369]
[1771087911506,0.014367,69632.0,69625.0,0.014369]
[1771087913003,0.014363,69652.0,69630.0,0.014368]
[1771087913305,0.014366,69640.0,69633.0,0.014367]
[1771087913804,0.5333311,69677.0,69631.0,0.01444]
[1771087914005,0.14372,69665.0,69650.0,0.09745549]
[1771087914203,0.2359436,69664.0,69651.0,0.01444]
[1771087914403,0.11044236,69664.0,69651.0,0.01444]
[1771087914601,0.014361,69663.0,69655.0,0.014362]
[1771087914907,0.014361,69662.0,69653.0,0.014363]
[1771087915111,0.014361,69662.0,69655.0,0.014362]
[1771087915300,0.014361,69663.0,69656.0,0.014362]
[1771087915596,0.014358,69676.0,69657.0,0.014362]
[1771087915800,0.014358,69676.0,69655.0,0.01444]
[1771087915801,0.014359,69671.0,69658.0,0.158082]
[1771087916005,0.014359,69670.0,69663.0,0.014361]
[1771087916203,0.01436,69669.0,69664.0,0.01448]
[1771087916401,0.014359,69671.0,69664.0,0.028841]
[1771087916610,0.01444,69676.0,69669.0,0.01436]
[1771087917006,0.01444,69676.0,69668.0,0.01436]
[1771087917402,0.01444,69676.0,69660.0,0.014361]
[1771087917403,0.09600236,69675.0,69660.0,0.014361]
[1771087917604,0.09600236,69675.0,69662.0,0.014361]
[1771087918002,0.09600236,69675.0,69661.0,0.172521]
[1771087919509,0.09600236,69675.0,69662.0,0.014361]
[1771087919706,0.09600236,69675.0,69661.0,0.172521]
[1771087919907,0.09600236,69675.0,69658.0,0.014362]
[1771087920211,0.09600236,69675.0,69661.0,0.014361]
[1771087920910,0.09600236,69675.0,69659.0,0.15816]
[1771087921110,0.09600236,69673.0,69659.0,0.114988]
[1771087921414,0.09600236,69671.0,69659.0,0.114988]
[1771087921908,0.09600236,69671.0,69654.0,0.014363]
[1771087922211,0.09600236,69671.0,69655.0,0.01448]
[1771087922400,0.22149466,69670.0,69659.0,0.014362]
[1771087922606,0.09600236,69671.0,69657.0,0.014362]
[1771087922901,0.01448,69672.0,69659.0,0.014361]
[1771087923102,0.01448,69672.0,69660.0,0.01448]
[1771087924415,0.01448,69672.0,69663.0,0.014361]
[1771087924914,0.01448,69672.0,69664.0,0.014361]
[1771087925113,0.01448,69672.0,69663.0,0.014361]
[1771087925511,0.14368,69674.0,69665.0,0.09745549]
[1771087925711,0.14368,69674.0,69665.0,0.11181549]
[1771087926014,0.14368,69674.0,69666.0,0.01444]
[1771087926409,0.4262481,69703.0,69674.0,0.014358]
[1771087926410,0.14368,69684.0,69674.0,0.014358]
[1771087926610,0.01444,69683.0,69673.0,0.014359]
[1771087927011,0.01444,69683.0,69674.0,0.014358]
[1771087927219,0.01444,69683.0,69673.0,0.014359]
[1771087927610,0.01444,69683.0,69672.0,0.014359]
[1771087927814,0.01444,69683.0,69670.0,0.01444]
[1771087928214,0.01444,69683.0,69670.0,0.028799]
[1771087928416,0.01444,69683.0,69673.0,0.014359]
[1771087928923,0.01444,69683.0,69670.0,0.01444]
[1771087929213,0.09600236,69696.0,69668.0,0.09745549]
[1771087929413,0.09600236,69694.0,69674.0,0.014358]
[1771087929625,0.09600236,69692.0,69671.0,0.01444]
[1771087929918,0.09600236,69690.0,69671.0,0.01444]
[1771087930121,0.09600236,69688.0,69667.0,0.01436]
[1771087930321,0.09600236,69686.0,69668.0,0.01444]
[1771087930918,0.09600236,69686.0,69668.0,0.0288]
[1771087931221,0.09600236,69686.0,69669.0,0.014359]
[1771087931622,0.09600236,69686.0,69684.0,0.014356]
[1771087931623,0.01444,69686.0,69684.0,0.014356]
[1771087932022,0.14368,69689.0,69685.0,0.014356]
[1771087932023,0.15812,69689.0,69685.0,0.014356]
[1771087932219,0.01444,69693.0,69686.0,0.014356]
[1771087932613,0.01444,69693.0,69684.0,0.028796]
[1771087932614,0.01444,69693.0,69684.0,0.01444]
[1771087933214,0.01444,69693.0,69686.0,0.014356]
[1771087933521,0.01444,69693.0,69684.0,0.028796]
[1771087933723,0.01444,69696.0,69684.0,0.028796]
[1771087934022,0.01444,69696.0,69684.0,0.01444]
[1771087935018,0.03650138,69717.0,69684.0,0.01444]
[1771087935019,0.09774858,69723.0,69685.0,0.09499594]
[1771087935219,0.09774858,69723.0,69684.0,0.01444]
[1771087935220,0.09774858,69721.0,69697.0,0.014354]
[1771087935416,0.09774858,69721.0,69698.0,0.028793]
[1771087935417,0.01444,69720.0,69698.0,0.028793]
[1771087935616,0.09774858,69719.0,69700.0,0.014353]
[1771087935823,0.09774858,69719.0,69701.0,0.014353]
[1771087936019,0.09774858,69719.0,69698.0,0.01444]
[1771087936326,0.09774858,69719.0,69703.0,0.014352]
[1771087937520,0.09774858,69719.0,69695.0,0.014354]
[1771087937724,0.09774858,69719.0,69697.0,0.014354]
[1771087937930,0.09774858,69719.0,69698.0,0.014354]
[1771087938228,0.09774858,69719.0,69697.0,0.014354]
[1771087938626,0.09774858,69719.0,69697.0,0.028794]
[1771087939123,0.09774858,69719.0,69697.0,0.01444]